[Event "Titled Tuesday Blitz November 22 Late 2022"]
[White "Zhigalko, Sergei"]
[Black "Hnydiuk, Aleksander"]
[WhiteFideId "13502956"]
[BlackFideId "1109057"]
[WhiteElo "2662"]
[BlackElo "2374"]
[Result "1-0"]
[Round "01"]
[TimeControl "180+1"]
[Date "2022.11.23"]
[WhiteClock "0:01:25"]
[BlackClock "0:00:10"]

1. e4 {[%clk 0:03:00]}  e5 {[%clk 0:02:57]} 2. Nf3 {[%clk 0:03:01]}  Nf6 {[%clk 0:02:57]} 3. d4 {[%clk 0:03:01]}  Nxe4 {[%clk 0:02:57]} 4. Bd3 {[%clk 0:03:01]}  d5 {[%clk 0:02:57]} 5. Nxe5 {[%clk 0:03:02]}  Nd7 {[%clk 0:02:57]} 6. Nxd7 {[%clk 0:03:02]}  Bxd7 {[%clk 0:02:58]} 7. O-O {[%clk 0:03:03]}  Bd6 {[%clk 0:02:57]} 8. Nc3 {[%clk 0:03:04]}  Nxc3 {[%clk 0:02:55]} 9. bxc3 {[%clk 0:03:05]}  O-O {[%clk 0:02:54]} 10. Qh5 {[%clk 0:03:05]}  f5 {[%clk 0:02:42]} 11. Re1 {[%clk 0:03:05]}  Qf6 {[%clk 0:02:26]} 12. Qf3 {[%clk 0:03:05]}  f4 {[%clk 0:01:56]} 13. Qxd5+ {[%clk 0:03:01]}  Kh8 {[%clk 0:01:56]} 14. Qxb7 {[%clk 0:02:43]}  f3 {[%clk 0:01:50]} 15. g3 {[%clk 0:02:43]}  Rae8 {[%clk 0:01:41]} 16. Bd2 {[%clk 0:02:40]}  Qf7 {[%clk 0:01:19]} 17. Re4 {[%clk 0:02:34]}  Rb8 {[%clk 0:00:48]} 18. Qa6 {[%clk 0:02:29]}  Bf5 {[%clk 0:00:38]} 19. Rh4 {[%clk 0:02:25]}  Qe7 {[%clk 0:00:27]} 20. Bxf5 {[%clk 0:01:43]}  Rxf5 {[%clk 0:00:28]} 21. Qd3 {[%clk 0:01:43]}  Qf7 {[%clk 0:00:21]} 22. Re1 {[%clk 0:01:40]}  h6 {[%clk 0:00:18]} 23. c4 {[%clk 0:01:40]}  c5 {[%clk 0:00:16]} 24. d5 {[%clk 0:01:40]}  Be5 {[%clk 0:00:15]} 25. Rhe4 {[%clk 0:01:39]}  Bd4 {[%clk 0:00:14]} 26. Be3 {[%clk 0:01:39]}  Bxe3 {[%clk 0:00:11]} 27. Qxe3 {[%clk 0:01:39]}  Kh7 {[%clk 0:00:11]} 28. Qd3 {[%clk 0:01:36]}  Qg6 {[%clk 0:00:10]} 29. Re6 {[%clk 0:01:25]} 1-0


[Site "https://www.chess.com"]

[Event "Titled Tuesday Blitz November 22 Late 2022"]
[White "Abdrlauf, Elham"]
[Black "Forgacs, Attila Jr."]
[WhiteFideId "1533533"]
[BlackFideId "773654"]
[WhiteElo "2447"]
[BlackElo "2168"]
[Result "1-0"]
[Round "02"]
[TimeControl "180+1"]
[Date "2022.11.23"]
[WhiteClock "0:00:39"]
[BlackClock "0:00:34"]

1. g3 {[%clk 0:03:00]}  g6 {[%clk 0:03:00]} 2. Bg2 {[%clk 0:03:01]}  Bg7 {[%clk 0:03:00]} 3. e3 {[%clk 0:03:02]}  Nf6 {[%clk 0:03:01]} 4. Ne2 {[%clk 0:03:02]}  O-O {[%clk 0:03:02]} 5. O-O {[%clk 0:03:03]}  d6 {[%clk 0:03:00]} 6. d4 {[%clk 0:03:04]}  Nbd7 {[%clk 0:02:56]} 7. c4 {[%clk 0:03:05]}  e5 {[%clk 0:02:57]} 8. Nbc3 {[%clk 0:03:06]}  c6 {[%clk 0:02:56]} 9. b3 {[%clk 0:03:06]}  Re8 {[%clk 0:02:55]} 10. Ba3 {[%clk 0:03:07]}  Qc7 {[%clk 0:02:56]} 11. Rc1 {[%clk 0:03:05]}  b6 {[%clk 0:02:48]} 12. Nb5 {[%clk 0:02:54]}  cxb5 {[%clk 0:02:22]} 13. Bxa8 {[%clk 0:02:55]}  bxc4 {[%clk 0:02:02]} 14. Bg2 {[%clk 0:02:24]}  b5 {[%clk 0:01:53]} 15. bxc4 {[%clk 0:02:14]}  bxc4 {[%clk 0:01:53]} 16. dxe5 {[%clk 0:02:10]}  dxe5 {[%clk 0:01:50]} 17. Nc3 {[%clk 0:01:57]}  Nc5 {[%clk 0:01:40]} 18. Nd5 {[%clk 0:01:21]}  Nxd5 {[%clk 0:01:38]} 19. Qxd5 {[%clk 0:01:22]}  Na6 {[%clk 0:01:18]} 20. Qc6 {[%clk 0:00:56]}  Qxc6 {[%clk 0:01:08]} 21. Bxc6 {[%clk 0:00:57]}  Rd8 {[%clk 0:01:03]} 22. Rfd1 {[%clk 0:00:46]}  Rxd1+ {[%clk 0:00:56]} 23. Rxd1 {[%clk 0:00:47]}  Bf6 {[%clk 0:00:54]} 24. Bb5 {[%clk 0:00:44]}  c3 {[%clk 0:00:50]} 25. Bxa6 {[%clk 0:00:42]}  Bxa6 {[%clk 0:00:50]} 26. Rd6 {[%clk 0:00:42]}  Be7 {[%clk 0:00:33]} 27. Rxa6 {[%clk 0:00:40]}  c2 {[%clk 0:00:34]} 28. Bc1 {[%clk 0:00:39]} 1-0


[Site "https://www.chess.com"]

[Event "Titled Tuesday Blitz November 22 Late 2022"]
[White "Aguilar, Juan"]
[Black "Garcia Pantoja, Roberto"]
[WhiteFideId "3800091"]
[BlackFideId "3509265"]
[WhiteElo "2484"]
[BlackElo "2524"]
[Result "0-1"]
[Round "02"]
[TimeControl "180+1"]
[Date "2022.11.23"]
[WhiteClock "0:01:12"]
[BlackClock "0:02:02"]

1. d4 {[%clk 0:03:00]}  Nf6 {[%clk 0:02:58]} 2. c4 {[%clk 0:03:01]}  e6 {[%clk 0:02:59]} 3. Nf3 {[%clk 0:03:01]}  d5 {[%clk 0:03:00]} 4. g3 {[%clk 0:03:01]}  Be7 {[%clk 0:03:00]} 5. Bg2 {[%clk 0:03:01]}  O-O {[%clk 0:03:00]} 6. O-O {[%clk 0:03:01]}  dxc4 {[%clk 0:03:01]} 7. Qc2 {[%clk 0:03:01]}  a6 {[%clk 0:03:01]} 8. a4 {[%clk 0:03:02]}  Nc6 {[%clk 0:03:01]} 9. Qxc4 {[%clk 0:02:58]}  Na5 {[%clk 0:03:01]} 10. Qc2 {[%clk 0:02:56]}  b6 {[%clk 0:03:01]} 11. Ne5 {[%clk 0:02:50]}  Bb7 {[%clk 0:03:01]} 12. Bxb7 {[%clk 0:02:48]}  Nxb7 {[%clk 0:03:02]} 13. Nc6 {[%clk 0:02:48]}  Qe8 {[%clk 0:03:02]} 14. e4 {[%clk 0:02:37]}  Bc5 {[%clk 0:03:01]} 15. dxc5 {[%clk 0:02:30]}  Qxc6 {[%clk 0:03:01]} 16. Nc3 {[%clk 0:02:23]}  Nxc5 {[%clk 0:02:58]} 17. Re1 {[%clk 0:02:13]}  Rad8 {[%clk 0:02:51]} 18. Bg5 {[%clk 0:02:10]}  Nd3 {[%clk 0:02:44]} 19. Re3 {[%clk 0:01:55]}  Ne5 {[%clk 0:02:35]} 20. Bxf6 {[%clk 0:01:46]}  gxf6 {[%clk 0:02:35]} 21. Qe2 {[%clk 0:01:41]}  Nc4 {[%clk 0:02:22]} 22. Rf3 {[%clk 0:01:29]}  Rd2 {[%clk 0:02:15]} 23. Qe1 {[%clk 0:01:26]}  Kg7 {[%clk 0:02:11]} 24. b3 {[%clk 0:01:23]}  Ne5 {[%clk 0:02:11]} 25. Re3 {[%clk 0:01:19]}  Rfd8 {[%clk 0:02:06]} 26. Rd1 {[%clk 0:01:12]}  Qxc3 {[%clk 0:02:02]} 0-1


[Site "https://www.chess.com"]

[Event "Titled Tuesday Blitz November 22 Late 2022"]
[White "Ai, Evan"]
[Black "Popilski, Gil"]
[WhiteFideId "2094770"]
[BlackFideId "2809060"]
[WhiteElo "1963"]
[BlackElo "2537"]
[Result "0-1"]
[Round "02"]
[TimeControl "180+1"]
[Date "2022.11.23"]
[WhiteClock "0:00:03"]
[BlackClock "0:01:09"]

1. e4 {[%clk 0:03:00]}  e5 {[%clk 0:02:58]} 2. Nf3 {[%clk 0:03:01]}  Nf6 {[%clk 0:02:57]} 3. Nxe5 {[%clk 0:03:01]}  d6 {[%clk 0:02:57]} 4. Nf3 {[%clk 0:03:01]}  Nxe4 {[%clk 0:02:57]} 5. Nc3 {[%clk 0:03:02]}  Nxc3 {[%clk 0:02:56]} 6. dxc3 {[%clk 0:03:03]}  Be7 {[%clk 0:02:56]} 7. Be3 {[%clk 0:03:03]}  O-O {[%clk 0:02:56]} 8. Qd2 {[%clk 0:03:04]}  Nd7 {[%clk 0:02:55]} 9. Bd3 {[%clk 0:03:04]}  Nf6 {[%clk 0:02:54]} 10. h3 {[%clk 0:03:03]}  Be6 {[%clk 0:02:49]} 11. O-O-O {[%clk 0:02:59]}  c6 {[%clk 0:02:43]} 12. Kb1 {[%clk 0:02:53]}  Bd5 {[%clk 0:02:39]} 13. c4 {[%clk 0:02:52]}  Be4 {[%clk 0:02:37]} 14. Nd4 {[%clk 0:02:47]}  Qd7 {[%clk 0:02:35]} 15. f3 {[%clk 0:02:45]}  Bg6 {[%clk 0:02:35]} 16. g4 {[%clk 0:02:41]}  d5 {[%clk 0:02:29]} 17. Bf5 {[%clk 0:02:09]}  Qc7 {[%clk 0:02:14]} 18. h4 {[%clk 0:01:48]}  dxc4 {[%clk 0:02:06]} 19. h5 {[%clk 0:01:39]}  Bxf5 {[%clk 0:02:04]} 20. Nxf5 {[%clk 0:01:40]}  Rfd8 {[%clk 0:02:03]} 21. Qe2 {[%clk 0:01:26]}  Nd5 {[%clk 0:02:01]} 22. Bd4 {[%clk 0:01:22]}  Bf6 {[%clk 0:01:52]} 23. h6 {[%clk 0:01:12]}  g6 {[%clk 0:01:47]} 24. Bxf6 {[%clk 0:00:17]}  Nxf6 {[%clk 0:01:46]} 25. Qe3 {[%clk 0:00:17]}  Re8 {[%clk 0:01:27]} 26. Qc3 {[%clk 0:00:13]}  Qe5 {[%clk 0:01:26]} 27. Nd4 {[%clk 0:00:07]}  Nd5 {[%clk 0:01:23]} 28. Qa3 {[%clk 0:00:03]}  c3 {[%clk 0:01:18]} 29. b3 {[%clk 0:00:03]}  Rad8 {[%clk 0:01:14]} 30. Qxa7 {[%clk 0:00:03]}  Ne3 {[%clk 0:01:13]} 31. Rd3 {[%clk 0:00:02]}  c5 {[%clk 0:01:11]} 32. Nb5 {[%clk 0:00:02]}  Rxd3 {[%clk 0:01:10]} 33. cxd3 {[%clk 0:00:03]}  c2+ {[%clk 0:01:10]} 34. Kc1 {[%clk 0:00:02]}  Qa1+ {[%clk 0:01:09]} 35. Kd2 {[%clk 0:00:03]}  Qxh1 {[%clk 0:01:09]} 0-1


[Site "https://www.chess.com"]

[Event "Titled Tuesday Blitz November 22 Late 2022"]
[White "Alexikov, Alexander"]
[Black "Aung Thant Zin"]
[WhiteFideId "14103958"]
[BlackFideId "13000063"]
[WhiteElo "2222"]
[BlackElo "2278"]
[Result "0-1"]
[Round "02"]
[TimeControl "180+1"]
[Date "2022.11.23"]
[WhiteClock "0:00:07"]
[BlackClock "0:00:20"]

1. e4 {[%clk 0:03:00]}  c5 {[%clk 0:02:59]} 2. Nf3 {[%clk 0:03:00]}  Nc6 {[%clk 0:03:00]} 3. Bb5 {[%clk 0:02:59]}  e6 {[%clk 0:02:58]} 4. O-O {[%clk 0:02:58]}  Nge7 {[%clk 0:02:58]} 5. Nc3 {[%clk 0:02:44]}  a6 {[%clk 0:02:54]} 6. Be2 {[%clk 0:02:42]}  d5 {[%clk 0:02:54]} 7. d3 {[%clk 0:02:40]}  b5 {[%clk 0:02:51]} 8. Bg5 {[%clk 0:02:35]}  d4 {[%clk 0:02:40]} 9. Nb1 {[%clk 0:02:34]}  Bb7 {[%clk 0:02:40]} 10. Nbd2 {[%clk 0:02:33]}  Qc7 {[%clk 0:02:38]} 11. Bh4 {[%clk 0:02:30]}  Ng6 {[%clk 0:02:35]} 12. Bg3 {[%clk 0:02:29]}  Bd6 {[%clk 0:02:35]} 13. Re1 {[%clk 0:02:23]}  h5 {[%clk 0:02:32]} 14. Bf1 {[%clk 0:02:22]}  h4 {[%clk 0:02:23]} 15. Bxd6 {[%clk 0:02:20]}  Qxd6 {[%clk 0:02:24]} 16. a4 {[%clk 0:02:09]}  Nf4 {[%clk 0:02:03]} 17. Qb1 {[%clk 0:01:42]}  Ne5 {[%clk 0:01:56]} 18. Nxe5 {[%clk 0:01:39]}  Qxe5 {[%clk 0:01:56]} 19. axb5 {[%clk 0:01:25]}  axb5 {[%clk 0:01:56]} 20. Rxa8+ {[%clk 0:01:24]}  Bxa8 {[%clk 0:01:56]} 21. c3 {[%clk 0:01:20]}  Nh3+ {[%clk 0:01:22]} 22. gxh3 {[%clk 0:01:08]}  Qg5+ {[%clk 0:01:22]} 23. Bg2 {[%clk 0:01:05]}  Qxd2 {[%clk 0:01:22]} 24. cxd4 {[%clk 0:01:03]}  cxd4 {[%clk 0:01:21]} 25. Rd1 {[%clk 0:01:00]}  Qb4 {[%clk 0:01:15]} 26. Rc1 {[%clk 0:00:53]}  O-O {[%clk 0:01:14]} 27. Qc2 {[%clk 0:00:50]}  Bb7 {[%clk 0:01:13]} 28. Qe2 {[%clk 0:00:47]}  Ra8 {[%clk 0:01:07]} 29. f4 {[%clk 0:00:38]}  Ra2 {[%clk 0:01:05]} 30. Rc2 {[%clk 0:00:37]}  Ra1+ {[%clk 0:01:01]} 31. Bf1 {[%clk 0:00:34]}  Qd6 {[%clk 0:00:56]} 32. Qf2 {[%clk 0:00:33]}  Qe7 {[%clk 0:00:50]} 33. Qf3 {[%clk 0:00:28]}  f5 {[%clk 0:00:45]} 34. Rg2 {[%clk 0:00:27]}  fxe4 {[%clk 0:00:42]} 35. dxe4 {[%clk 0:00:26]}  Re1 {[%clk 0:00:37]} 36. Re2 {[%clk 0:00:23]}  Rb1 {[%clk 0:00:33]} 37. Kf2 {[%clk 0:00:19]}  Qc5 {[%clk 0:00:25]} 38. Qd3 {[%clk 0:00:14]}  b4 {[%clk 0:00:23]} 39. Bg2 {[%clk 0:00:13]}  Rc1 {[%clk 0:00:22]} 40. Qf3 {[%clk 0:00:08]}  d3+ {[%clk 0:00:21]} 41. Re3 {[%clk 0:00:08]}  Rc2+ {[%clk 0:00:21]} 42. Kg1 {[%clk 0:00:07]}  d2 {[%clk 0:00:20]} 0-1


[Site "https://www.chess.com"]

[Event "Titled Tuesday Blitz November 22 Late 2022"]
[White "Ankerst, Mihael"]
[Black "Horobetz, Graham"]
[WhiteFideId "14602369"]
[BlackFideId "2047322"]
[WhiteElo "2350"]
[BlackElo "2615"]
[Result "0-1"]
[Round "02"]
[TimeControl "180+1"]
[Date "2022.11.23"]
[WhiteClock "0:00:07"]
[BlackClock "0:00:08"]

1. e4 {[%clk 0:03:00]}  c5 {[%clk 0:02:59]} 2. Nf3 {[%clk 0:03:00]}  d6 {[%clk 0:02:59]} 3. d4 {[%clk 0:03:00]}  cxd4 {[%clk 0:03:00]} 4. Nxd4 {[%clk 0:03:00]}  Nf6 {[%clk 0:03:01]} 5. Nc3 {[%clk 0:03:01]}  a6 {[%clk 0:03:01]} 6. Bc4 {[%clk 0:03:01]}  e6 {[%clk 0:03:02]} 7. Bb3 {[%clk 0:03:01]}  Be7 {[%clk 0:03:02]} 8. g4 {[%clk 0:03:00]}  h6 {[%clk 0:03:00]} 9. Rg1 {[%clk 0:02:58]}  b5 {[%clk 0:02:58]} 10. f3 {[%clk 0:02:58]}  Bb7 {[%clk 0:02:58]} 11. h4 {[%clk 0:02:55]}  Nc6 {[%clk 0:02:57]} 12. g5 {[%clk 0:02:54]}  hxg5 {[%clk 0:02:56]} 13. hxg5 {[%clk 0:02:55]}  Nd7 {[%clk 0:02:24]} 14. Bxe6 {[%clk 0:02:54]}  fxe6 {[%clk 0:02:14]} 15. Nxe6 {[%clk 0:02:55]}  Qb6 {[%clk 0:02:14]} 16. Nxg7+ {[%clk 0:02:53]}  Kf7 {[%clk 0:02:13]} 17. Kf1 {[%clk 0:01:41]}  Rh2 {[%clk 0:02:00]} 18. Qe1 {[%clk 0:01:29]}  Kxg7 {[%clk 0:01:42]} 19. Nd5 {[%clk 0:01:29]}  Rf8 {[%clk 0:01:33]} 20. Qg3 {[%clk 0:01:20]}  Qd4 {[%clk 0:00:47]} 21. Qxh2 {[%clk 0:01:19]}  Qd1+ {[%clk 0:00:46]} 22. Kf2 {[%clk 0:01:06]}  Qxf3+ {[%clk 0:00:20]} 23. Ke1 {[%clk 0:01:06]}  Qxe4+ {[%clk 0:00:19]} 24. Ne3 {[%clk 0:00:38]}  Rh8 {[%clk 0:00:18]} 25. Qg2 {[%clk 0:00:22]}  Qxg2 {[%clk 0:00:13]} 26. Nxg2 {[%clk 0:00:21]}  Nd4 {[%clk 0:00:12]} 27. Kd2 {[%clk 0:00:18]}  Nf3+ {[%clk 0:00:12]} 28. Kd3 {[%clk 0:00:16]}  Nxg1 {[%clk 0:00:13]} 29. Be3 {[%clk 0:00:16]}  Nf3 {[%clk 0:00:13]} 30. Nf4 {[%clk 0:00:16]}  Bxg5 {[%clk 0:00:11]} 31. Ne6+ {[%clk 0:00:14]}  Kf6 {[%clk 0:00:11]} 32. Nxg5 {[%clk 0:00:13]}  Nxg5 {[%clk 0:00:11]} 33. Rf1+ {[%clk 0:00:11]}  Kg6 {[%clk 0:00:11]} 34. Rg1 {[%clk 0:00:12]}  Ne5+ {[%clk 0:00:10]} 35. Kc3 {[%clk 0:00:08]}  Nf3 {[%clk 0:00:10]} 36. Rd1 {[%clk 0:00:07]}  Rc8+ {[%clk 0:00:11]} 37. Kb3 {[%clk 0:00:07]}  Rc6 {[%clk 0:00:07]} 38. a4 {[%clk 0:00:07]}  bxa4+ {[%clk 0:00:07]} 39. Kxa4 {[%clk 0:00:07]}  d5 {[%clk 0:00:07]} 40. c3 {[%clk 0:00:07]}  Rc4+ {[%clk 0:00:08]} 41. Kb3 {[%clk 0:00:07]}  Bc6 {[%clk 0:00:08]} 0-1


[Site "https://www.chess.com"]

[Event "Titled Tuesday Blitz November 22 Late 2022"]
[White "Ansh M Shah"]
[Black "Vargas, Mauricio"]
[WhiteFideId "25033379"]
[BlackFideId "4404572"]
[WhiteElo "2084"]
[BlackElo "2025"]
[Result "1-0"]
[Round "02"]
[TimeControl "180+1"]
[Date "2022.11.23"]
[WhiteClock "0:01:32"]
[BlackClock "0:01:17"]

1. d4 {[%clk 0:03:00]}  d5 {[%clk 0:02:59]} 2. c4 {[%clk 0:03:01]}  c6 {[%clk 0:02:59]} 3. cxd5 {[%clk 0:03:01]}  e6 {[%clk 0:03:00]} 4. Nc3 {[%clk 0:03:02]}  exd5 {[%clk 0:03:00]} 5. Nf3 {[%clk 0:03:02]}  Bd6 {[%clk 0:02:58]} 6. Bg5 {[%clk 0:03:01]}  Nf6 {[%clk 0:02:57]} 7. Qc2 {[%clk 0:03:01]}  h6 {[%clk 0:02:53]} 8. Bh4 {[%clk 0:03:01]}  Nbd7 {[%clk 0:02:50]} 9. e3 {[%clk 0:03:01]}  Nf8 {[%clk 0:02:50]} 10. Bd3 {[%clk 0:03:01]}  Bg4 {[%clk 0:02:41]} 11. Ne5 {[%clk 0:03:00]}  Be6 {[%clk 0:02:38]} 12. a3 {[%clk 0:02:52]}  Qc7 {[%clk 0:02:38]} 13. f4 {[%clk 0:02:51]}  Ng4 {[%clk 0:02:27]} 14. f5 {[%clk 0:02:37]}  Nxe3 {[%clk 0:02:16]} 15. Qe2 {[%clk 0:02:36]}  Nxf5 {[%clk 0:02:09]} 16. Bxf5 {[%clk 0:02:35]}  Bxf5 {[%clk 0:02:08]} 17. O-O {[%clk 0:02:01]}  Rg8 {[%clk 0:02:04]} 18. Rxf5 {[%clk 0:02:00]}  g5 {[%clk 0:02:00]} 19. Nxf7+ {[%clk 0:01:52]}  Kd7 {[%clk 0:01:43]} 20. Nxd6 {[%clk 0:01:52]}  Qxd6 {[%clk 0:01:43]} 21. Rf7+ {[%clk 0:01:48]}  Kd8 {[%clk 0:01:39]} 22. Bg3 {[%clk 0:01:45]}  Qe6 {[%clk 0:01:27]} 23. Rxf8+ {[%clk 0:01:43]}  Rxf8 {[%clk 0:01:21]} 24. Qxe6 {[%clk 0:01:43]}  Rc8 {[%clk 0:01:17]} 25. Re1 {[%clk 0:01:32]} 1-0


[Site "https://www.chess.com"]

[Event "Titled Tuesday Blitz November 22 Late 2022"]
[White "Antonio, Jorge Carlos"]
[Black "Gonzalez, Francisco Silva"]
[WhiteFideId "113190"]
[BlackFideId "1512285"]
[WhiteElo "2247"]
[BlackElo "2159"]
[Result "0-1"]
[Round "02"]
[TimeControl "180+1"]
[Date "2022.11.23"]
[WhiteClock "0:00:34"]
[BlackClock "0:01:55"]

1. d4 {[%clk 0:02:54]}  Nf6 {[%clk 0:02:58]} 2. Nf3 {[%clk 0:02:52]}  d5 {[%clk 0:02:58]} 3. Bf4 {[%clk 0:02:50]}  c5 {[%clk 0:02:58]} 4. e3 {[%clk 0:02:49]}  Nc6 {[%clk 0:02:58]} 5. c3 {[%clk 0:02:49]}  Qb6 {[%clk 0:02:57]} 6. Qb3 {[%clk 0:02:48]}  c4 {[%clk 0:02:57]} 7. Qxb6 {[%clk 0:02:48]}  axb6 {[%clk 0:02:57]} 8. Nbd2 {[%clk 0:02:48]}  Bf5 {[%clk 0:02:57]} 9. Nh4 {[%clk 0:02:47]}  Bd7 {[%clk 0:02:53]} 10. e4 {[%clk 0:02:46]}  b5 {[%clk 0:02:51]} 11. e5 {[%clk 0:02:40]}  Ng8 {[%clk 0:02:48]} 12. a3 {[%clk 0:02:34]}  h6 {[%clk 0:02:48]} 13. Be3 {[%clk 0:02:28]}  g5 {[%clk 0:02:47]} 14. Nhf3 {[%clk 0:02:28]}  Bf5 {[%clk 0:02:47]} 15. Be2 {[%clk 0:02:21]}  e6 {[%clk 0:02:47]} 16. O-O {[%clk 0:02:21]}  Nge7 {[%clk 0:02:42]} 17. h3 {[%clk 0:02:21]}  Nc8 {[%clk 0:02:40]} 18. Nh2 {[%clk 0:02:20]}  Nb6 {[%clk 0:02:38]} 19. Bg4 {[%clk 0:02:17]}  Bg6 {[%clk 0:02:36]} 20. Bd1 {[%clk 0:02:07]}  Na4 {[%clk 0:02:34]} 21. Bxa4 {[%clk 0:02:06]}  bxa4 {[%clk 0:02:33]} 22. f4 {[%clk 0:02:03]}  gxf4 {[%clk 0:02:28]} 23. Bxf4 {[%clk 0:02:02]}  Na5 {[%clk 0:02:28]} 24. Rf2 {[%clk 0:01:58]}  Nb3 {[%clk 0:02:27]} 25. Nxb3 {[%clk 0:01:57]}  axb3 {[%clk 0:02:27]} 26. Raf1 {[%clk 0:01:57]}  h5 {[%clk 0:02:24]} 27. Bg5 {[%clk 0:01:49]}  b5 {[%clk 0:02:20]} 28. Nf3 {[%clk 0:01:48]}  Bd3 {[%clk 0:02:17]} 29. Re1 {[%clk 0:01:46]}  Rg8 {[%clk 0:02:17]} 30. Bf6 {[%clk 0:01:38]}  Bf5 {[%clk 0:02:15]} 31. Kh2 {[%clk 0:01:32]}  Bh6 {[%clk 0:02:14]} 32. Nh4 {[%clk 0:01:28]}  Bd3 {[%clk 0:02:14]} 33. Rf3 {[%clk 0:01:20]}  Bh7 {[%clk 0:02:10]} 34. Ref1 {[%clk 0:01:18]}  Ra7 {[%clk 0:02:10]} 35. Rg3 {[%clk 0:01:13]}  Rxg3 {[%clk 0:02:04]} 36. Kxg3 {[%clk 0:01:12]}  b4 {[%clk 0:02:02]} 37. axb4 {[%clk 0:01:11]}  Ra2 {[%clk 0:02:02]} 38. Rf2 {[%clk 0:01:11]}  Bc1 {[%clk 0:02:02]} 39. Kh2 {[%clk 0:01:00]}  Bxb2 {[%clk 0:01:57]} 40. Rf3 {[%clk 0:00:47]}  Bc1 {[%clk 0:01:55]} 41. b5 {[%clk 0:00:34]}  b2 {[%clk 0:01:55]} 0-1


[Site "https://www.chess.com"]

[Event "Titled Tuesday Blitz November 22 Late 2022"]
[White "Ardila, Oscar Humberto"]
[Black "Lopez Gracia, Fernando"]
[WhiteFideId "4404742"]
[BlackFideId "2207184"]
[WhiteElo "1959"]
[BlackElo "2476"]
[Result "1-0"]
[Round "02"]
[TimeControl "180+1"]
[Date "2022.11.23"]
[WhiteClock "0:02:09"]
[BlackClock "0:01:42"]

1. d4 {[%clk 0:02:59]}  Nf6 {[%clk 0:02:59]} 2. c4 {[%clk 0:02:59]}  e6 {[%clk 0:02:59]} 3. Nc3 {[%clk 0:02:59]}  Bb4 {[%clk 0:02:59]} 4. Bd2 {[%clk 0:03:00]}  c5 {[%clk 0:02:58]} 5. dxc5 {[%clk 0:03:00]}  Bxc5 {[%clk 0:02:54]} 6. Nf3 {[%clk 0:02:59]}  b6 {[%clk 0:02:54]} 7. e3 {[%clk 0:02:59]}  Bb7 {[%clk 0:02:54]} 8. Be2 {[%clk 0:02:59]}  O-O {[%clk 0:02:55]} 9. O-O {[%clk 0:02:59]}  d5 {[%clk 0:02:48]} 10. cxd5 {[%clk 0:02:59]}  Nxd5 {[%clk 0:02:48]} 11. Nxd5 {[%clk 0:02:57]}  Bxd5 {[%clk 0:02:44]} 12. Bc3 {[%clk 0:02:57]}  Nc6 {[%clk 0:02:43]} 13. a3 {[%clk 0:02:53]}  a5 {[%clk 0:02:40]} 14. Qa4 {[%clk 0:02:53]}  Ne7 {[%clk 0:02:32]} 15. Qg4 {[%clk 0:02:51]}  Ng6 {[%clk 0:02:22]} 16. h4 {[%clk 0:02:49]}  f5 {[%clk 0:02:11]} 17. Qh3 {[%clk 0:02:49]}  Be7 {[%clk 0:02:07]} 18. h5 {[%clk 0:02:47]}  Nh8 {[%clk 0:02:07]} 19. Ne5 {[%clk 0:02:42]}  Bf6 {[%clk 0:02:05]} 20. Rad1 {[%clk 0:02:40]}  Nf7 {[%clk 0:02:04]} 21. Nc6 {[%clk 0:02:22]}  Qc7 {[%clk 0:01:52]} 22. Bxf6 {[%clk 0:02:19]}  Qxc6 {[%clk 0:01:53]} 23. Qg3 {[%clk 0:02:13]}  g6 {[%clk 0:01:40]} 24. hxg6 {[%clk 0:02:13]}  Nh6 {[%clk 0:01:41]} 25. gxh7+ {[%clk 0:02:10]}  Kxh7 {[%clk 0:01:42]} 26. Qg7# {[%clk 0:02:09]} 1-0


[Site "https://www.chess.com"]

[Event "Titled Tuesday Blitz November 22 Late 2022"]
[White "Artemenko, Oleg"]
[Black "Thomas, Anysia"]
[WhiteFideId "14201798"]
[BlackFideId "670472"]
[WhiteElo "2287"]
[BlackElo "2069"]
[Result "1-0"]
[Round "02"]
[TimeControl "180+1"]
[Date "2022.11.23"]
[WhiteClock "0:02:18"]
[BlackClock "0:00:26"]

1. d4 {[%clk 0:03:00]}  Nf6 {[%clk 0:02:55]} 2. Nc3 {[%clk 0:03:00]}  d5 {[%clk 0:02:54]} 3. Bf4 {[%clk 0:03:00]}  g6 {[%clk 0:02:53]} 4. e3 {[%clk 0:02:59]}  Bg7 {[%clk 0:02:53]} 5. h4 {[%clk 0:02:59]}  h5 {[%clk 0:02:53]} 6. Nf3 {[%clk 0:02:59]}  Bg4 {[%clk 0:02:52]} 7. Be2 {[%clk 0:02:59]}  O-O {[%clk 0:02:50]} 8. Ne5 {[%clk 0:02:59]}  Bxe2 {[%clk 0:02:46]} 9. Qxe2 {[%clk 0:03:00]}  Nbd7 {[%clk 0:02:37]} 10. O-O-O {[%clk 0:02:59]}  a5 {[%clk 0:02:33]} 11. g4 {[%clk 0:02:59]}  Nxe5 {[%clk 0:02:30]} 12. dxe5 {[%clk 0:02:59]}  Nxg4 {[%clk 0:02:30]} 13. Nxd5 {[%clk 0:02:54]}  Qb8 {[%clk 0:01:44]} 14. Nxe7+ {[%clk 0:02:52]}  Kh7 {[%clk 0:01:41]} 15. Rdg1 {[%clk 0:02:39]}  Nxe5 {[%clk 0:01:35]} 16. Rg5 {[%clk 0:02:39]}  Ng4 {[%clk 0:01:20]} 17. Rxg4 {[%clk 0:02:39]}  hxg4 {[%clk 0:01:20]} 18. h5 {[%clk 0:02:39]}  g5 {[%clk 0:01:13]} 19. Qxg4 {[%clk 0:02:39]}  Ra6 {[%clk 0:01:06]} 20. Qf5+ {[%clk 0:02:35]}  Kh8 {[%clk 0:01:05]} 21. h6 {[%clk 0:02:35]}  Bf6 {[%clk 0:01:01]} 22. Be5 {[%clk 0:02:17]}  Bxe5 {[%clk 0:00:54]} 23. Qxe5+ {[%clk 0:02:18]}  f6 {[%clk 0:00:54]} 24. Qf5 {[%clk 0:02:18]}  Qd8 {[%clk 0:00:44]} 25. Ng6+ {[%clk 0:02:17]}  Kg8 {[%clk 0:00:32]} 26. h7+ {[%clk 0:02:16]}  Kg7 {[%clk 0:00:26]} 27. Nxf8 {[%clk 0:02:16]}  Qxf8 {[%clk 0:00:26]} 28. h8=Q+ {[%clk 0:02:17]}  Qxh8 {[%clk 0:00:26]} 29. Qd7+ {[%clk 0:02:18]} 1-0


[Site "https://www.chess.com"]

[Event "Titled Tuesday Blitz November 22 Late 2022"]
[White "Banzea, Alexandru-Bogdan"]
[Black "Baskakov, Egor"]
[WhiteFideId "1232622"]
[BlackFideId "24197866"]
[WhiteElo "2294"]
[BlackElo "2211"]
[Result "1-0"]
[Round "02"]
[TimeControl "180+1"]
[Date "2022.11.23"]
[WhiteClock "0:02:34"]
[BlackClock "0:02:32"]

1. d4 {[%clk 0:03:00]}  Nf6 {[%clk 0:02:59]} 2. Bf4 {[%clk 0:03:01]}  e6 {[%clk 0:03:00]} 3. e3 {[%clk 0:03:01]}  d5 {[%clk 0:03:01]} 4. Nf3 {[%clk 0:03:02]}  Be7 {[%clk 0:03:01]} 5. Nbd2 {[%clk 0:03:01]}  Ne4 {[%clk 0:03:02]} 6. Bd3 {[%clk 0:02:53]}  f5 {[%clk 0:03:02]} 7. Ne5 {[%clk 0:02:53]}  O-O {[%clk 0:03:02]} 8. f3 {[%clk 0:02:52]}  Nxd2 {[%clk 0:03:02]} 9. Qxd2 {[%clk 0:02:53]}  Nd7 {[%clk 0:03:02]} 10. c3 {[%clk 0:02:48]}  Nxe5 {[%clk 0:03:02]} 11. Bxe5 {[%clk 0:02:49]}  Bd6 {[%clk 0:03:02]} 12. f4 {[%clk 0:02:49]}  Bxe5 {[%clk 0:03:02]} 13. fxe5 {[%clk 0:02:50]}  Qe7 {[%clk 0:03:01]} 14. O-O-O {[%clk 0:02:49]}  c5 {[%clk 0:03:02]} 15. g4 {[%clk 0:02:46]}  cxd4 {[%clk 0:02:46]} 16. exd4 {[%clk 0:02:47]}  fxg4 {[%clk 0:02:46]} 17. Rdg1 {[%clk 0:02:44]}  Bd7 {[%clk 0:02:37]} 18. Rxg4 {[%clk 0:02:43]}  Rf7 {[%clk 0:02:37]} 19. Rhg1 {[%clk 0:02:36]}  Raf8 {[%clk 0:02:38]} 20. Qh6 {[%clk 0:02:36]}  Rf1+ {[%clk 0:02:32]} 21. Rxf1 {[%clk 0:02:34]} 1-0


[Site "https://www.chess.com"]